lending/lending_fUSD_20240120
["ID","MTS","AMOUNT","RATE_DAILY","PERIOD"]
[312277772,1705733462534,-500.0,0.00025753,2]
[312277773,1705733462544,-500.0,0.00025753,2]
[312277774,1705733462554,-500.0,0.00025753,2]
[312277775,1705733462563,-500.0,0.00025753,2]
[312277776,1705733462573,-500.0,0.00025753,2]
[312277777,1705733462582,-500.0,0.00025753,2]
[312277778,1705733462593,-500.0,0.00025753,2]
[312277779,1705733462603,-500.0,0.00025753,2]
[312277780,1705733462612,-573.72258083,0.00025753,2]
[312277781,1705733462622,-500.0,0.00025753,2]
[312277782,1705733462632,-500.0,0.00025753,2]
[312277783,1705733462644,-500.0,0.00025753,2]
[312277784,1705733462654,-500.0,0.00025753,2]
[312277785,1705733462664,-500.0,0.00025753,2]
[312277786,1705733462674,-500.0,0.00025753,2]
[312277787,1705733462686,-383.8239251,0.00025753,2]
[312277788,1705733462695,-500.0,0.00025753,2]
[312277789,1705733462705,-500.0,0.00025753,2]
[312277790,1705733462719,-552.58323165,0.00025753,2]
[312277791,1705733462729,-500.0,0.00025753,2]
[312277792,1705733462739,-500.0,0.00025753,2]
[312277793,1705733462748,-500.0,0.00025753,2]
[312277794,1705733462757,-500.0,0.00025753,2]
[312277795,1705733462766,-500.0,0.00025753,2]
[312277796,1705733462775,-535.73,0.00025753,2]
[312277797,1705733462784,-500.0,0.00025753,2]
[312277798,1705733462794,-500.0,0.00025753,2]
[312277799,1705733462803,-500.0,0.00025753,2]
[312277800,1705733462812,-500.0,0.00025753,2]
[312277801,1705733462822,-500.0,0.00025753,2]
[312277802,1705733462831,-500.0,0.00025753,2]
[312277803,1705733462840,-500.0,0.00025753,2]
[312277804,1705733462850,-500.0,0.00025753,2]
[312277805,1705733462859,-500.0,0.00025753,2]
[312277806,1705733462869,-500.0,0.00025753,2]
[312277807,1705733462878,-150.0,0.00025753,2]
[312277808,1705733462888,-1486.38,0.00025753,2]
[312277809,1705733462954,-500.0,0.00025753,2]
[312277810,1705733462964,-500.0,0.00025753,2]
[312277811,1705733462975,-500.0,0.00025753,2]
[312277812,1705733462985,-500.0,0.00025753,2]
[312277813,1705733462994,-500.0,0.00025753,2]
[312277814,1705733463003,-500.0,0.00025753,2]
[312277815,1705733463012,-500.0,0.00025753,2]
[312277816,1705733463021,-500.0,0.00025753,2]
[312277817,1705733463030,-190.81846365,0.00025753,2]
[312277818,1705733463039,-500.0,0.00025753,2]
[312277819,1705733463048,-500.0,0.00025753,2]
[312277820,1705733463057,-500.0,0.00025753,2]
[312277821,1705733463066,-500.0,0.00025753,2]
[312277822,1705733463075,-500.0,0.00025753,2]
[312277823,1705733463084,-500.0,0.00025753,2]
[312277824,1705733463092,-500.0,0.00025753,2]
[312277825,1705733463102,-457.96280702,0.00025753,2]
[312277826,1705733463111,-500.0,0.00025753,2]
[312277827,1705733463120,-1000.0,0.00025753,2]
[312277828,1705733463130,-422.61413088,0.00025753,2]
[312277829,1705733463139,-500.0,0.00025753,2]
[312277830,1705733463149,-595.05872089,0.00025753,2]
[312277831,1705733463159,-414.0203645,0.00025753,2]
[312277832,1705733463169,-585.07416747,0.00025753,2]
[312277833,1705733463179,-500.0,0.00025753,2]
[312277834,1705733463189,-500.0,0.00025753,2]
[312277835,1705733463198,-500.0,0.00025753,2]
[312277836,1705733463207,-500.0,0.00025753,2]
[312277837,1705733463216,-500.0,0.00025753,2]
[312277838,1705733463226,-500.0,0.00025753,2]
[312277839,1705733463237,-630.15,0.00025753,2]
[312277840,1705733463246,-500.0,0.00025753,2]
[312277841,1705733463255,-623.31,0.00025753,2]
[312277842,1705733463265,-629.56,0.00025753,2]
[312277843,1705733463274,-1946.47,0.00025753,2]
[312277844,1705733463283,-561.38758519,0.00025753,2]
[312277845,1705733463293,-500.0,0.00025753,2]
[312277846,1705733463302,-500.0,0.00025753,2]
[312277847,1705733463311,-893.99,0.00025753,2]
[312277848,1705733463320,-512.04118171,0.00025753,2]
[312277849,1705733463329,-500.0,0.00025753,2]
[312277850,1705733463338,-1655.52,0.00025753,2]
[312277851,1705733463348,-1324.72,0.00025753,2]
[312277852,1705733463357,-500.0,0.00025753,2]
[312277853,1705733463366,-500.0,0.00025753,2]
[312277854,1705733463376,-2343.96,0.00025753,2]
[312277855,1705733463386,-500.0,0.00025753,2]
[312277856,1705733463396,-500.0,0.00025753,2]
[312277857,1705733463405,-500.0,0.00025753,2]
[312277858,1705733463414,-532.00515705,0.00025753,2]
[312277859,1705733463424,-908.17,0.00025753,2]
[312277860,1705733463434,-764.63694851,0.00025753,2]
[312277861,1705733463766,-748.77934784,0.00025753,2]
[312277862,1705733463780,-1107.46370365,0.00025753,2]
[312277863,1705733463790,-204.97457588,0.00025753,2]
[312277864,1705733463808,-408.6446019,0.00025753,2]
[312277865,1705733463818,-500.0,0.00025753,2]
[312277866,1705733463828,-1065.1,0.00025753,2]
[312277867,1705733463839,-1374.82,0.00025753,2]
[312277868,1705733463849,-62.61782716,0.00025753,2]
[312277869,1705733463862,-437.38217284,0.00025753,2]
[312277870,1705733463872,-500.0,0.00025753,2]
[312277871,1705733463882,-500.0,0.00025753,2]
[312277872,1705733463892,-2105.9760281,0.00025753,2]
[312277873,1705733464175,-500.0,0.00024931,2]
[312277874,1705733464185,-500.0,0.00024931,2]
[312277875,1705733464195,-8.0,0.00025205,2]
[312277876,1705733464444,-492.0,0.00025205,2]
[312277877,1705733464454,-362.34569505,0.00025205,2]
[312277878,1705733472209,820.63501258,0.00020792,2]
[312277879,1705733646767,588.759999,0.0002,2]
[312277881,1705734018565,672.64,0.00020263,2]
[312277882,1705734177207,-202.0,0.00021446,2]
[312277883,1705734177228,-268.9978855,0.00021446,2]
[312277884,1705734177249,-529.0021145,0.0002158,7]
[312277885,1705734253395,3388.55888662,0.00031,120]
[312277886,1705734302802,806.38052018,0.0003,120]
[312277888,1705734451783,639.0,0.00020189,2]
[312277893,1705734489808,265.51268587,0.00020189,2]
[312277905,1705734631912,-2637.53466704,0.0002158,7]
[312277906,1705734631922,-754.22583188,0.000219,2]
[312277907,1705734631932,-3559.71194141,0.0002191,2]
[312277908,1705734631942,-155.73201383,0.00021958,2]
[312277909,1705734631951,-150.0,0.0002199,2]
[312277910,1705734631961,-150.0,0.0002199,2]
[312277911,1705734631970,-514.92694813,0.0002199,2]
[312277912,1705734631982,-270.98804803,0.0002199,2]
[312277913,1705734632002,-546.06149217,0.0002199,2]
[312277914,1705734632014,-9.73265103,0.0002199,2]
[312277915,1705734632024,-421.45247865,0.00021991,2]
[312277916,1705734632078,-215.45752135,0.00021991,2]
[312277917,1705734632088,-664.30345923,0.00021991,2]
[312277918,1705734632099,-559.71247832,0.00021991,2]
[312277919,1705734632111,-502.88675972,0.00021991,2]
[312277920,1705734632244,-340.27973294,0.00021991,2]
[312277935,1705734637952,-645.08729923,0.00021991,2]
[312277936,1705734638007,-3355.883,0.00021991,2]
[312277937,1705734638172,-2461.16702176,0.00021991,2]
[312277938,1705734638183,-449.81441715,0.00021991,2]
[312277939,1705734638196,-14900.86583165,0.00021991,2]
[312277940,1705734638205,-159.82,0.00022042,2]
[312277941,1705734638214,-153.59,0.00022042,2]
[312277942,1705734638223,-437.16,0.00022046,2]
[312277943,1705734638232,-455.68,0.00022063,2]
[312277944,1705734638241,-2705.0,0.00022063,2]
[312277945,1705734638251,-452.1,0.00022063,2]
[312277946,1705734638259,-262.57,0.00022063,2]
[312277947,1705734638269,-6713.8,0.00022074,2]
[312277948,1705734638278,-200.0,0.00022078,2]
[312277949,1705734638287,-500.0,0.00022082,2]
[312277950,1705734638297,-250.0,0.00022083,2]
[312277951,1705734638306,-150.0,0.00022083,2]
[312277952,1705734638315,-584.87,0.00022085,2]
[312277953,1705734638324,-2000.0,0.00022085,2]
[312277954,1705734638333,-1852.42,0.00022095,2]
[312277955,1705734638342,-250.0,0.00022139,2]
[312277956,1705734638351,-716.27,0.00022143,2]
[312277957,1705734638361,-317.24212237,0.00022181,2]
[312277958,1705734638370,-630.6668591,0.00022182,2]
[312277959,1705734638379,-156.0907728,0.00022182,2]
[312277960,1705734638389,-3609.546437,0.00022182,2]
[312277962,1705734638398,-156.45952712,0.00022182,2]
[312277963,1705734638407,-8369.50195664,0.00022182,2]
[312277964,1705734638418,-731.0,0.00022182,2]
[312277965,1705734638430,-1213.22536447,0.00022182,2]
[312277966,1705734638439,-155.45037873,0.00022183,2]
[312277968,1705734638448,-842.56103335,0.00022183,2]
[312277970,1705734638457,-4025.76678918,0.00022184,2]
[312277988,1705734640608,-11120.26590994,0.00022184,2]
[312277989,1705734640621,-2864.08439039,0.00022184,2]
[312277991,1705734641429,-10397.96895785,0.00022184,2]
[312277992,1705734641439,-586.28,0.00022211,2]
[312277993,1705734641448,-1272.43,0.00022231,2]
[312277994,1705734641458,-171.72,0.00022259,2]
[312277995,1705734641467,-550.6,0.00022279,2]
[312277996,1705734641477,-544.32,0.00022439,2]
[312277997,1705734641486,-639.0,0.00022453,2]
[312277998,1705734641495,-163.1,0.00022472,2]
[312277999,1705734641505,-171.72,0.00022549,2]
[312278000,1705734641515,-171.72,0.00022839,2]
[312278001,1705734641524,-584.87,0.00022902,2]
[312278002,1705734641533,-171.72,0.00023129,2]
[312278003,1705734641543,-437.16,0.00023148,2]
[312278004,1705734641552,-202.0,0.00023301,2]
[312278005,1705734641561,-171.72,0.00023419,2]
[312278006,1705734641570,-153.59,0.00023512,2]
[312278007,1705734641580,-3190.67771766,0.0002367,2]
[312278008,1705734641589,-155.84174451,0.00023719,3]
[312278009,1705734641599,-584.87,0.00023719,2]
[312278010,1705734641608,-716.27,0.00023787,2]
[312278011,1705734641618,-250.0,0.000242,2]
[312278012,1705734641627,-171.23,0.0002425,2]
[312278013,1705734641636,-437.16,0.0002425,2]
[312278014,1705734641646,-158.69,0.00024388,2]
[312278015,1705734641655,-690.5564,0.00024457,2]
[312278016,1705734641664,-176.36,0.00024479,2]
[312278017,1705734641673,-2899.0,0.000245,2]
[312278018,1705734641682,-29918.0,0.000245,2]
[312278019,1705734641692,-4125.91248321,0.00024525,2]
[312278020,1705734641701,-584.87,0.00024536,2]
[312278021,1705734641710,-201.48,0.00024556,2]
[312278022,1705734641720,-63863.1561,0.00024557,2]
[312278023,1705734641729,-59599.3537,0.00024557,2]
[312278024,1705734641739,-299.5784,0.00024557,2]
[312278025,1705734641749,-55555.0,0.00024557,2]
[312278026,1705734641758,-189.0084231,0.00024625,3]
[312278027,1705734641767,-242.64064868,0.00024625,3]
[312278028,1705734641776,-276.57825258,0.00024625,3]
[312278029,1705734641786,-157.55038315,0.00024625,3]
[312278030,1705734641796,-309.44303673,0.00024625,3]
[312278031,1705734641805,-2686.38817364,0.0002465,2]
[312278032,1705734641815,-501.73992337,0.00024651,2]
[312278033,1705734641824,-155.44390996,0.00024652,2]
[312278034,1705734641834,-229.5508507,0.00024653,2]
[312278035,1705734641843,-2633.97324505,0.00024653,2]
[312278036,1705734641852,-155.16123928,0.00024654,2]
[312278037,1705734641862,-155.46709664,0.00024654,2]
[312278038,1705734641882,-1045.12024233,0.00024654,2]
[312278039,1705734641893,-155.86402743,0.00024654,2]
[312278040,1705734641903,-1056.86295192,0.00024654,2]
[312278041,1705734641913,-195.82351298,0.00024654,2]
[312278042,1705734641923,-155.88855844,0.00024654,2]
[312278043,1705734641933,-1376.57974956,0.00024654,2]
[312278044,1705734641944,-244.52646251,0.00024654,2]
[312278045,1705734641953,-178.94185082,0.00024654,2]
[312278046,1705734641963,-455.69831598,0.00024654,2]
[312278047,1705734641973,-228.2911982,0.00024654,2]
[312278048,1705734641984,-387.1184404,0.00024654,2]
[312278049,1705734641993,-155.55868612,0.00024654,2]
[312278050,1705734642003,-155.84506351,0.00024654,2]
[312278051,1705734642013,-239.55911128,0.00024654,2]
[312278052,1705734642023,-156.42813758,0.00024654,2]
[312278053,1705734642033,-246.99950823,0.00024654,2]
[312278054,1705734642045,-317.68649056,0.00024654,2]
[312278055,1705734642055,-236.50119799,0.00024654,2]
[312278056,1705734642065,-320.93418675,0.00024654,2]
[312278057,1705734642075,-652.57373136,0.00024654,2]
[312278058,1705734642086,-156.70296895,0.00024654,2]
[312278059,1705734642095,-156.20008983,0.00024654,2]
[312278060,1705734642105,-202.94837059,0.00024654,2]
[312278061,1705734642115,-276.85857294,0.00024654,2]
[312278062,1705734642125,-155.9785352,0.00024654,2]
[312278063,1705734642134,-157.76888681,0.00024654,2]
[312278064,1705734642144,-155.81995439,0.00024654,2]
[312278065,1705734642154,-229.01986248,0.00024654,2]
[312278066,1705734642164,-415.3614252,0.00024654,2]
[312278067,1705734642174,-245.39126416,0.00024654,2]
[312278068,1705734642183,-190.28115615,0.00024654,2]
[312278069,1705734642193,-298.28728816,0.00024654,2]
[312278070,1705734642204,-2152.94004867,0.00024654,2]
[312278071,1705734642216,-199.80281699,0.00024654,2]
[312278072,1705734642226,-268.03967915,0.00024654,2]
[312278073,1705734642236,-481.37146398,0.00024654,2]
[312278074,1705734642245,-847.54894066,0.00024654,2]
[312278075,1705734642265,-8.81172108,0.00024654,2]
[312278076,1705734642274,-195.15582925,0.00024654,2]
[312278077,1705734642284,-57.57411007,0.00024654,2]
[312278078,1705734642296,-103.95421236,0.00024654,2]
[312278079,1705734642306,-227.00303627,0.00024654,2]
[312278080,1705734642315,-110.43990942,0.00024654,2]
[312278081,1705734642327,-738.70204546,0.00024654,2]
[312278128,1705734642967,-175.78813749,0.0002181,2]
[312278131,1705734642976,-2924.55644529,0.00024654,2]
[312278150,1705734643130,-800.62139382,0.00024654,2]
[312278152,1705734643140,-24.87996668,0.00024654,2]
[312278155,1705734643153,-144.7342047,0.00024654,2]
[312278156,1705734643163,-607.58187312,0.00024654,2]
[312278159,1705734643172,-286.6896523,0.00024655,2]
[312278161,1705734643182,-1317.93249377,0.00024655,2]
[312278163,1705734643192,-220.43024859,0.00024655,2]
[312278165,1705734643202,-361.73818308,0.00024656,2]
[312278167,1705734643212,-420.65027261,0.00024656,2]
[312278168,1705734643346,-1417.1428517,0.00024656,2]
[312278169,1705734643368,-526.2500001,0.00024656,2]
[312278181,1705734646120,-299.12354907,0.00024656,2]
[312278183,1705734646135,-1122.33691505,0.00024656,2]
[312278185,1705734646153,-1176.84006877,0.00024656,2]
[312278188,1705734646177,-501.29256854,0.00024656,2]
[312278190,1705734646190,-16383.0985078,0.00024656,2]
[312278193,1705734646203,-3696.03882751,0.00024656,2]
[312278194,1705734646215,-1486.21731114,0.00024656,4]
[312278197,1705734646228,-120.58712532,0.00024656,4]
[312278198,1705734646239,-364.09538564,0.00024656,2]
[312278200,1705734646249,-278.62792723,0.00024656,2]
[312278203,1705734646264,-662.1246568,0.00024656,2]
[312278204,1705734646275,-2167.12437723,0.00024656,2]
[312278206,1705734646285,-3560.65526165,0.00024656,2]
[312278209,1705734646307,-1131.59954634,0.00024656,2]
[312278211,1705734646326,-882.82641225,0.00024656,2]
[312278213,1705734646338,-1399.0500003,0.00024656,2]
[312278216,1705734646352,-1668.69667644,0.00024656,2]
[312278224,1705734679092,855.7333317,0.00020189,2]
[312278225,1705734680221,283.62244372,0.00020189,2]
[312278226,1705734847875,6084.77228021,0.00020189,2]
[312278227,1705734854238,282.80136825,0.00020189,2]
[312278228,1705734926454,606.67,0.00020628,2]
[312278229,1705735172798,317.85231201,0.000209,2]
[312278230,1705735348810,576.33,0.00019891,2]
[312278235,1705735555319,1932.1981332,0.00025,30]
[312278236,1705735685014,203.0,0.00020301,2]
[312278241,1705735787892,547.51,0.00019763,2]
[312278276,1705735832183,-337.29655685,0.00020963,2]
[312278277,1705735832194,-137.27320939,0.00020964,7]
[312278278,1705735833421,-482.22900367,0.00020964,7]
[312278279,1705735833529,-582.55680911,0.00020964,7]
[312278280,1705735833543,-879.05296663,0.00020964,7]
[312278281,1705735833553,-733.53058872,0.00021,2]
[312278282,1705735833563,-318.39411246,0.00021537,2]
[312278283,1705735833573,-160.85,0.00021628,2]
[312278284,1705735833583,-1410.8,0.00021632,2]
[312278286,1705735833593,-200.0,0.00021637,2]
[312278288,1705735833603,-261.58,0.00021637,2]
[312278290,1705735833614,-841.48,0.00021637,2]
[312278291,1705735833624,-500.0,0.00021641,2]
[312278292,1705735833634,-750.0,0.00021641,2]
[312278293,1705735833644,-200.0,0.00021644,2]
[312278295,1705735833655,-150.0,0.00021646,2]
[312278297,1705735833664,-613.04651276,0.00021649,2]
[312278300,1705735833681,-13853.82348724,0.00021649,2]
[312278302,1705735833691,-900.74,0.00021649,2]
[312278304,1705735833702,-183.15,0.00021651,2]
[312278306,1705735833712,-300.0,0.00021652,2]
[312278308,1705735833722,-150.0,0.00021652,2]
[312278310,1705735833732,-150.0,0.00021652,2]
[312278313,1705735833744,-4346.23,0.00021653,2]
[312278315,1705735833754,-174.86,0.00021653,2]
[312278317,1705735833767,-2207.77,0.00021655,2]
[312278319,1705735833778,-250.0,0.00021658,2]
[312278321,1705735833788,-5842.06,0.00021659,2]
[312278323,1705735833798,-589.59,0.00021659,2]
[312278325,1705735833809,-183.2,0.00021665,2]
[312278327,1705735833820,-802.52,0.00021676,2]
[312278330,1705735833831,-3681.08,0.00021681,2]
[312278332,1705735833841,-500.0,0.00021702,2]
[312278334,1705735833852,-556.81,0.00021708,2]
[312278336,1705735833862,-194.95,0.00021723,2]
[312278338,1705735833873,-159.77,0.00021759,2]
[312278339,1705735833884,-965.05,0.00021767,2]
[312278341,1705735833903,-23890.0,0.00021779,2]
[312278342,1705735833917,-318.39411227,0.00021793,2]
[312278343,1705735833928,-1428.76,0.00021809,2]
[312278344,1705735833939,-13385.63,0.00021839,2]
[312278345,1705735833950,-161.48,0.00021843,2]
[312278346,1705735833961,-158.69,0.00021871,2]
[312278347,1705735833971,-250.0,0.00021918,2]
[312278348,1705735833982,-480.12,0.00021918,2]
[312278349,1705735833994,-413.92649268,0.00021943,2]
[312278350,1705735834004,-2705.0,0.00021966,2]
[312278351,1705735834016,-161.48,0.00021969,2]
[312278352,1705735834027,-499.99,0.00022004,2]
[312278353,1705735834038,-547.51,0.00022027,2]
[312278354,1705735834049,-318.39411227,0.0002205,2]
[312278355,1705735834060,-422.12160871,0.00022056,2]
[312278356,1705735834071,-155.0,0.00022065,2]
[312278357,1705735834083,-278.73030459,0.00022067,2]
[312278358,1705735834093,-24671.23322743,0.00022067,2]
[312278359,1705735834104,-235.97766295,0.00022068,2]
[312278360,1705735834115,-155.4915277,0.00022068,2]
[312278361,1705735834126,-43004.73531426,0.00022069,2]
[312278362,1705735834136,-291.63942627,0.00022069,2]
[312278363,1705735834148,-161.48,0.00022096,2]
[312278364,1705735834158,-1377.601495,0.00022189,2]
[312278365,1705735834169,-161.48,0.00022222,2]
[312278366,1705735834180,-318.39411227,0.00022306,2]
[312278367,1705735834190,-161.48,0.00022349,2]
[312278368,1705735834200,-1000.0,0.00022455,2]
[312278369,1705735834211,-161.48,0.00022475,2]
[312278370,1705735834222,-278.01,0.00022539,2]
[312278371,1705735834232,-318.39411227,0.00022563,2]
[312278372,1705735834243,-161.48,0.00022602,2]
[312278373,1705735834254,-161.48,0.00022728,2]
[312278374,1705735834265,-174.86,0.00022736,2]
[312278375,1705735834276,-318.39411227,0.00022819,2]
[312278376,1705735834287,-159.29,0.00022823,2]
[312278377,1705735834298,-161.16,0.00022828,2]
[312278378,1705735834309,-161.48,0.00022855,2]
[312278379,1705735834320,-161.48,0.00022981,2]
[312278380,1705735834332,-159.29,0.00023019,2]
[312278381,1705735834343,-318.39411227,0.00023076,2]
[312278382,1705735834355,-159.29,0.00023214,2]
[312278383,1705735834365,-802.52,0.0002332,2]
[312278384,1705735834376,-194.95,0.00023331,2]
[312278385,1705735834387,-318.39411227,0.00023332,2]
[312278386,1705735834398,-159.29,0.0002341,2]
[312278387,1705735834408,-318.39411227,0.00023589,2]
[312278388,1705735834419,-159.29,0.00023605,2]
[312278389,1705735834431,-278.01,0.00023666,2]
[312278390,1705735834447,-421.11065095,0.00023669,2]
[312278391,1705735834458,-330.41489988,0.000238,2]
[312278392,1705735834469,-159.29,0.00023801,2]
[312278393,1705735834480,-174.86,0.00023819,2]
[312278394,1705735834491,-318.39411227,0.00023845,2]
[312278395,1705735834502,-161.16,0.00023902,2]
[312278396,1705735834513,-408.10021057,0.00023955,3]
[312278397,1705735834526,-159.29,0.00023997,2]
[312278398,1705735834537,-299.25,0.00024082,2]
[312278399,1705735834548,-318.39411227,0.00024102,2]
[312278400,1705735834558,-159.29,0.00024192,2]
[312278401,1705735834569,-250.0,0.000242,2]
[312278402,1705735834579,-547.51,0.00024291,2]
[312278403,1705735834590,-318.39411227,0.00024358,2]
[312278404,1705735834601,-159.29,0.00024388,2]
[312278405,1705735834613,-199.33,0.00024456,2]
[312278406,1705735834625,-221.3403,0.00024457,2]
[312278407,1705735834636,-71661.5142,0.00024457,2]
[312278408,1705735834648,-157.34249883,0.000245,2]
[312278409,1705735834658,-1000.0,0.00024557,2]
[312278410,1705735834669,-148.28474433,0.00024557,2]
[312278411,1705735838147,-2000.0,0.0002166,2]
[312278412,1705735838158,-1959.16595567,0.00024557,2]
[312278413,1705735838170,-173.10087153,0.00024557,2]
[312278414,1705735838181,-159.29,0.00024583,2]
[312278415,1705735838192,-302.08,0.000246,2]
[312278416,1705735838203,-318.39411227,0.00024615,2]
[312278417,1705735838484,-173.41172418,0.00024625,3]
[312278418,1705735838494,-183.23079872,0.00024625,3]
[312278419,1705735838503,-1000.0,0.00024625,3]
[312278420,1705735838512,-152.73970075,0.00024647,2]
[312278421,1705735838524,-405.02991585,0.00024653,2]
[312278422,1705735838534,-207.82039875,0.00024654,2]
[312278423,1705735838543,-1297.22529328,0.00024654,2]
[312278453,1705735838821,-675.78429317,0.00024654,2]
[312278456,1705735838834,-333.42,0.00024654,2]
[312278458,1705735838851,-473.58796629,0.00024654,2]
[312278460,1705735838860,-1386.0896245,0.00024655,2]
[312278464,1705735838889,-552.0,0.00024655,2]
[312278467,1705735838902,-10655.067663,0.00024655,2]
[312278469,1705735838914,-1912.82063655,0.00024655,2]
[312278471,1705735838925,-845.03557722,0.00024655,2]
[312278482,1705735839019,-5950.82474578,0.00024655,2]
[312278485,1705735839031,-1565.82284311,0.00024655,2]
[312278490,1705735839074,-534.94030156,0.00024655,2]
[312278493,1705735839085,-943.41945735,0.00024655,2]
[312278495,1705735839094,-1913.64946437,0.00024656,2]
[312278497,1705735839103,-145.34042553,0.00024657,7]
[312278499,1705735839119,-844.65957447,0.00024657,7]
[312278501,1705735839129,-990.0,0.00024657,7]
[312278503,1705735839138,-990.0,0.00024657,7]
[312278505,1705735839147,-990.0,0.00024657,7]
[312278507,1705735839156,-990.0,0.00024657,7]
[312278509,1705735839166,-990.0,0.00024657,7]
[312278511,1705735839175,-990.0,0.00024657,7]
[312278513,1705735839184,-990.0,0.00024657,7]
[312278515,1705735839193,-990.0,0.00024657,7]
[312278517,1705735839203,-990.0,0.00024657,7]
[312278519,1705735839212,-736.86634794,0.00024657,7]
[312278627,1705735840905,-253.13365206,0.00024657,7]
[312278628,1705735840915,-990.0,0.00024657,7]
[312278629,1705735840925,-990.0,0.00024657,7]
[312278630,1705735840935,-990.0,0.00024657,7]
[312278631,1705735840945,-990.0,0.00024657,7]
[312278632,1705735840955,-990.0,0.00024657,7]
[312278633,1705735840964,-880.23253987,0.00024657,7]
[312278634,1705735840976,-500.0,0.00024657,2]
[312278635,1705735840986,-500.0,0.00024657,2]
[312278636,1705735840997,-500.0,0.00024657,2]
[312278637,1705735841006,-500.0,0.00024657,2]
[312278638,1705735841015,-300.0,0.00024657,2]
[312278639,1705735841025,-500.0,0.00024657,2]
[312278640,1705735841035,-500.0,0.00024657,2]
[312278641,1705735841044,-500.0,0.00024657,2]
[312278642,1705735841053,-500.0,0.00024657,2]
[312278643,1705735841063,-191.67536345,0.00024657,2]
[312278644,1705735841072,-500.0,0.00024657,2]
[312278645,1705735841082,-500.0,0.00024657,2]
[312278646,1705735841091,-500.0,0.00024657,2]
[312278647,1705735841101,-500.0,0.00024657,2]
[312278648,1705735841110,-500.0,0.00024657,2]
[312278649,1705735841120,-500.0,0.00024657,2]
[312278650,1705735841129,-500.0,0.00024657,2]
[312278651,1705735841138,-500.0,0.00024657,2]
[312278652,1705735841148,-500.0,0.00024657,2]
[312278653,1705735841158,-1000.0,0.00024657,2]
[312278654,1705735841168,-500.0,0.00024657,2]
[312278655,1705735841177,-500.0,0.00024657,2]
[312278656,1705735841186,-500.0,0.00024657,2]
[312278657,1705735841196,-500.0,0.00024657,2]
[312278658,1705735841205,-500.0,0.00024657,2]
[312278659,1705735841215,-500.0,0.00024657,2]
[312278660,1705735841224,-500.0,0.00024657,2]
[312278661,1705735841233,-500.0,0.00024657,2]
[312278662,1705735841243,-621.75,0.00024657,2]
[312278663,1705735841252,-500.0,0.00024657,2]
[312278664,1705735841261,-500.0,0.00024657,2]
[312278665,1705735841271,-500.0,0.00024657,2]
[312278666,1705735841280,-500.0,0.00024657,2]
[312278667,1705735841290,-500.0,0.00024657,2]
[312278668,1705735841299,-500.0,0.00024657,2]
[312278669,1705735841308,-500.0,0.00024657,2]
[312278670,1705735841317,-531.65489875,0.00024657,2]
[312278671,1705735841327,-500.0,0.00024657,2]
[312278672,1705735841336,-500.0,0.00024657,2]
[312278673,1705735841345,-500.0,0.00024657,2]
[312278674,1705735841355,-500.0,0.00024657,2]
[312278675,1705735841364,-500.0,0.00024657,2]
[312278676,1705735841374,-500.0,0.00024657,2]
[312278677,1705735841383,-500.0,0.00024657,2]
[312278678,1705735841393,-500.0,0.00024657,2]
[312278679,1705735841402,-500.0,0.00024657,2]
[312278680,1705735841412,-500.0,0.00024657,2]
[312278681,1705735841421,-500.0,0.00024657,2]
[312278682,1705735841431,-500.0,0.00024657,2]
[312278683,1705735841442,-500.0,0.00024657,2]